Cogmind - Beta 17.1 @@@ ROGUE MODE // 2026.08.25 @ 20:51:09 Player: Blue Result: Self-destructed Performance ------------- Evolutions (1) 500 Regions Visited (3) 600 Robots Destroyed (60) 300 Value Destroyed (1200) 1200 Prototype IDs (0) 0 Alien Tech Used (0) 0 Bonus (143) 143 TOTAL SCORE: 2743 Bonus ------- High Alert Combat Kills 143 Cogmind --------- Core Integrity 292/400 Matter 243/300 Energy 265/265 System Corruption 1% Temperature Cool (27) Movement Treading (152) Location -9/Storage Parts ------- > --- POWER (1) -------- Improved Ion Engine > --- PROPULSION (4) --- Light Treads Advanced Treads > --- UTILITY (2) ------ Medium Storage Unit > --- WEAPON (2) ------- Mini Grenade Launcher Scythe > --- INVENTORY (10) --- Improved Ion Engine Cooling System Small Storage Unit High-capacity Matter Pod (51) Targeting Computer Heavy Assault Rifle Improved Light Cannon Improved Light Cannon Mini Grenade Launcher Peak State ------------ > --- POWER ------------ Improved Ion Engine > --- PROPULSION ------- Advanced Treads Advanced Treads Advanced Treads Advanced Treads > --- UTILITY ---------- Cooling System Medium Storage Unit > --- WEAPON ----------- Mini Grenade Launcher Scythe > --- INVENTORY -------- Light Ion Engine Improved Ion Engine Small Storage Unit High-capacity Matter Pod Targeting Computer Hardened Light Armor Plating Assault Rifle Improved Light Cannon Mini Grenade Launcher [Rating: 23] Favorites ----------- Power Ion Engine Engine Ion Engine Propulsion Advanced Treads Treads Advanced Treads Leg Aluminum Leg Hover Unit Hover Unit Utility Medium Storage Unit Device Improved Heat Sink Storage Medium Storage Unit Protection Hardened Light Armor Plating Weapon Mini Grenade Launcher Energy Gun EM Pulse Gun Ballistic Gun Assault Rifle Launcher Mini Grenade Launcher Slashing Weapon Scythe Build | -11 -10 -9 -9 ------- Run | Yrd Mat Mat Sto Slots Evolved 2 | . . 2 . Power . | . . . . Propulsion 2 | . . 2 . Utility . | . . . . Weapon . | . . . . Parts Attached 30 | 6 10 14 . Power 4 | 1 1 2 . Engine 4 | 1 1 2 . Core . | . . . . Reactor . | . . . . Propulsion 12 | 2 1 9 . Treads 5 | . . 5 . Leg 4 | 2 1 1 . Wheel . | . . . . Hover 3 | . . 3 . Flight . | . . . . Utility 5 | 1 3 1 . Device 2 | . 2 . . Storage 2 | 1 1 . . Processor . | . . . . Hackware . | . . . . Protection 1 | . . 1 . Artifact . | . . . . Weapon 9 | 2 5 2 . Energy Gun 1 | 1 . . . Energy Cannon . | . . . . Ballistic Gun 2 | 1 1 . . Ballistic Cannon . | . . . . Launcher 4 | . 3 1 . Special Weapon . | . . . . Impact Weapon . | . . . . Slashing Weapon 2 | . 1 1 . Piercing Weapon . | . . . . Special Melee Weapon . | . . . . Unidentified Prototypes . | . . . . Parts Lost 9 | . 4 3 2 Power 2 | . 1 1 . Propulsion 3 | . . 1 2 Utility 2 | . 1 1 . Weapon 2 | . 2 . . Highest Loss Streak 3 | . 2 1 3 To Critical Strikes . | . . . . Average Backups 6 | 1 5 9 9 Power 1 | . 1 1 1 Propulsion . | . 1 . . Utility 2 | . 1 3 4 Weapon 2 | . 1 3 4 Tool/Special . | . . . . Unused Backups 9 | . 2 1 6 Power 1 | . . . 1 Propulsion 1 | . . 1 . Utility 3 | . 1 . 2 Weapon 4 | . 1 . 3 Tool/Special . | . . . . Average Slot Usage (%) 91 | . 87 96 88 Engine 11 | . 12 11 11 Treads 17 | . . 37 44 Leg 15 | . 28 1 . Device 5 | . 6 3 . Storage 12 | . 14 11 11 Protection 3 | . . 6 . Energy Gun 1 | . 3 . . Ballistic Gun 6 | . 11 1 . Launcher 8 | . 5 11 11 Slashing Weapon 7 | . 5 8 11 Peak Build Rating 23 | 6 11 23 19 Average Rating 12 | 3 7 20 19 On Entrance 9 | . 6 11 19 Avg Prop Armor Cover (%) . | . . . . Naked Turns . | . . . . Heaviest Build 25 | 13 22 25 20 Greatest Support 88 | 20 20 88 86 Greatest Overweight (x) 5 | 3 1 5 . Average Overweight (x) . | 1 . . . Largest Inventory Capacity 10 | 8 10 10 10 Average Capacity 9 | 7 9 10 10 Most Carried 10 | 5 10 10 9 Average Carried 6 | 1 5 9 9 Final Capacity 10 | 8 10 10 10 Final Carried 9 | 1 9 9 9 Class Distribution -------------------- 100% | Mutant Dominant Class ---------------- Mutant | -10/Materials Mutant | -9/Materials Mutant | -9/Storage Resources | -11 -10 -9 -9 ----------- Run | Yrd Mat Mat Sto Matter Collected 964 | 215 341 408 . Remotely . | . . . . Salvage Created 923 | . 271 652 . Parts 95 | . 20 75 . Haulers Intercepted 1 | . 1 . . Recyclers Shooed 1 | . . 1 . Parts Field Recycled . | . . . . Retrieved Matter . | . . . . Parts Self-Destructed . | . . . . Prevented . | . . . . Parts Restored . | . . . . Kills | -11 -10 -9 -9 ------- Run | Yrd Mat Mat Sto Combat Hostiles Destroyed 40 | . 10 30 . Melee 6 | . 1 5 . AOE 34 | . 9 25 . Classes Destroyed 10 | . 6 4 . Worker 6 | . 3 3 . Builder 9 | . . 9 . Hauler 1 | . 1 . . Mechanic 2 | . 1 1 . Watcher 2 | . 1 1 . Swarmer 17 | . 2 15 . Grunt 18 | . 8 10 . Brawler 1 | . . 1 . Duelist 1 | . . 1 . Sentry 3 | . . 3 . Best Kill Streak 11 | . 7 11 . Combat Bots Only 10 | . 3 10 . Max Kills in Single Turn 6 | . 2 6 . Gunslinging . | . . . . Exploded 6 | . 2 6 . Melee 1 | . 1 1 . Uniques/NPCs Destroyed . | . . . . Combat | -11 -10 -9 -9 -------- Run | Yrd Mat Mat Sto Hostile Shots Fired 160 | . 32 126 2 Missed 66 | . 15 51 . Hits 94 | . 17 75 2 Projectile 94 | . 17 75 2 AOE 1 | . 1 . . Critical Strikes 3 | . . 2 1 Damage Taken 1630 | . 500 1101 29 Core 209 | . 101 108 . Absorbed by Shields . | . . . . Core Remaining (%) 79 | 100 59 . . Volleys Fired 47 | . 21 26 . Largest 2 | . 2 2 . Hottest 60 | . 50 60 . Shots Fired 56 | . 27 29 . Gun 14 | . 14 . . Cannon . | . . . . Launcher 42 | . 13 29 . Special . | . . . . Kinetic 14 | . 14 . . Thermal . | . . . . Explosive 42 | . 13 29 . Electromagnetic . | . . . . Robot Hit Streak 5 | . 5 5 . Robot Miss Streak 3 | . 2 3 . Penetration Max . | . . . . Secondary Targets . | . . . . Shots Hit Robots 38 | . 13 25 . Core Hits 75 | . 21 54 . Critical Kills . | . . . . Critical Parts Destroyed . | . . . . Critical Strikes . | . . . . Melee Attacks 18 | . 2 16 . Impact . | . . . . Slashing 18 | . 2 16 . Piercing . | . . . . Sneak Attacks 2 | . . 2 . Combat Hostiles . | . . . . Follow-up Attacks . | . . . . Damage Inflicted 4111 | . 1285 2826 . Guns 44 | . 44 . . Cannons . | . . . . Explosions 3668 | . 1219 2449 . Melee 399 | . 22 377 . Ramming . | . . . . Kinetic 44 | . 44 . . Thermal . | . . . . Explosive 3668 | . 1219 2449 . Electromagnetic . | . . . . Impact . | . . . . Slashing 399 | . 22 377 . Piercing . | . . . . Highest Corruption 1 | . . 1 1 Average Corruption 1 | . . 1 1 Corruption Purged . | . . . . Corruption Blocked . | . . . . Overload Shots . | . . . . Overflow Damage 246 | . 84 162 . Projectiles . | . . . . Explosions 204 | . 84 120 . Melee 42 | . . 42 . Knockbacks . | . . . . Impact . | . . . . Kinetic . | . . . . Secondary . | . . . . Self-Inflicted Damage 536 | . 213 323 . Shots 17 | . 6 11 . Rammed . | . . . . Targets Rammed . | . . . . Kicked . | . . . . Crushed . | . . . . Highest Temperature 18 | . 16 18 . Average Temperature 7 | . 7 7 . Received Heat Transfer 288 | . 81 180 27 Siege Activations . | . . . . Martial Activations . | . . . . Shielding Activations . | . . . . Robots Disrupted . | . . . . Combat Hostiles . | . . . . Robots Corrupted . | . . . . Combat Hostiles . | . . . . Parts Fried . | . . . . Impact Corruptions . | . . . . Robots Melted . | . . . . Combat Hostiles . | . . . . Parts Melted . | . . . . Heat Transferred . | . . . . Parts Sabotaged . | . . . . Parts Stolen . | . . . . Parts Stripped . | . . . . Power Chain Reactions . | . . . . Alert | -11 -10 -9 -9 ------- Run | Yrd Mat Mat Sto Maximum Alert Level 3 | . 1 3 1 Low Security (%) 62 | 100 94 19 . Level 1 19 | . 5 36 100 Level 2 10 | . . 25 . Level 3 7 | . . 17 . Level 4 . | . . . . Level 5 . | . . . . High Security . | . . . . Max Security . | . . . . Peak Influence 843 | . 212 843 352 Initial 352 | . . 59 352 Average 233 | . 116 409 352 Influence Increases 1455 | . 411 1044 . Destroy 0b10 Robot/C 800 | . 200 600 . Destroy 0b10 Robot/NC 100 | . 30 70 . Destroy Leader 156 | . 44 112 . Successful Hack 7 | . . 7 . Disable Machine 75 | . 30 45 . Destroy Structure 272 | . 107 165 . Lose Combat Pursuer 45 | . . 45 . Influence Decreases 1123 | . 268 352 503 Entered New Map 567 | . . 84 483 Time Decay 466 | . 228 238 . Lost Part 90 | . 40 30 20 Squads Dispatched 5 | . 2 3 . Investigation 1 | . . 1 . Extermination . | . . . . Reinforcement 3 | . 2 1 . Assault 1 | . . 1 . Garrison . | . . . . Intercept . | . . . . Searches Triggered . | . . . . Construction Impeded . | . . . . Haulers Reinforced . | . . . . Active Scanning Responses . | . . . . Cargo Convoy Interrupts . | . . . . Stealth | -11 -10 -9 -9 --------- Run | Yrd Mat Mat Sto Distress Signals 3 | . 1 2 . Communications Jammed . | . . . . Distress Signals . | . . . . Times Spotted 54 | . 18 34 2 Peak Tracking Total 7 | . 4 7 3 Tactical Retreats 2 | . . 2 . Traps | -11 -10 -9 -9 ------- Run | Yrd Mat Mat Sto Traps Triggered . | . . . . Indirectly . | . . . . Trap Hack Attempts . | . . . . Triggered . | . . . . Disarmed . | . . . . Reprogrammed . | . . . . Reused . | . . . . Traps Extracted . | . . . . Installed . | . . . . Triggered . | . . . . Machines | -11 -10 -9 -9 ---------- Run | Yrd Mat Mat Sto Machines Disabled 5 | . 2 3 . Max in Single Turn 1 | . 1 1 . Machines Repaired . | . . . . Machines Dismantled . | . . . . Machines Sabotaged . | . . . . Overloaded Fab Kills . | . . . . Hacking | -11 -10 -9 -9 --------- Run | Yrd Mat Mat Sto Machines Accessed 3 | . 2 1 . Terminals 3 | . 2 1 . Fabricators . | . . . . Repair Stations . | . . . . Recycling Units . | . . . . Scanalyzers . | . . . . Garrison Access . | . . . . Total Hacks 8 | . 4 4 . Successful 3 | . 1 2 . Failed 5 | . 3 2 . Catastrophic 1 | . 1 . . Database Lockouts . | . . . . Manual 4 | . 4 . . Terminals 8 | . 4 4 . Fabricators . | . . . . Repair Stations . | . . . . Recycling Units . | . . . . Scanalyzers . | . . . . Garrison Access . | . . . . Terminal Hacks 3 | . 1 2 . Unreport Threat 1 | . 1 . . Hauler Manifests 1 | . . 1 . Registered Components 1 | . . 1 . Fabricator Hacks . | . . . . Repair Station Hacks . | . . . . Recycling Unit Hacks . | . . . . Scanalyzer . | . . . . Garrison Access Hacks . | . . . . Unauthorized Hacks . | . . . . Terminals . | . . . . Fabricators . | . . . . Repair Stations . | . . . . Recycling Units . | . . . . Scanalyzers . | . . . . Garrison Access . | . . . . Data Cores Recovered . | . . . . Used . | . . . . Hacking Detections 3 | . 2 1 . Full Trace Events 1 | . . 1 . Feedback Events 1 | . . 1 . Corruption 1 | . . 1 . Feedback Blocked . | . . . . Robot Schematics Acquired . | . . . . Robots Built . | . . . . Authchips . | . . . . Time . | . . . . Total Robot Build Rating . | . . . . Part Schematics Acquired . | . . . . Parts Built . | . . . . Authchips . | . . . . Time . | . . . . Total Part Build Rating . | . . . . Part Studies Acquired . | . . . . Parts Repaired . | . . . . Time . | . . . . Parts Recycled . | . . . . Recycled Matter . | . . . . Retrieved Matter . | . . . . Retrieved Components . | . . . . Parts Scanalyzed . | . . . . Part Schematics Acquired . | . . . . Parts Damaged . | . . . . Bothacking | -11 -10 -9 -9 ------------ Run | Yrd Mat Mat Sto Used RIF Installer . | . . . . Robots Hacked . | . . . . Non-combat . | . . . . Combat . | . . . . Robot Hacks Applied . | . . . . Relay Couplers Released . | . . . . Fabnet Peak Effective % . | . . . . Robots Rewired . | . . . . Allies Hacked . | . . . . Hacks Repelled . | . . . . Allies | -11 -10 -9 -9 -------- Run | Yrd Mat Mat Sto Total Allies . | . . . . Largest Group . | . . . . Highest-Rated Group . | . . . . Highest-Rated Ally . | . . . . Total Orders . | . . . . Ally Attacks . | . . . . Total Damage . | . . . . Kills . | . . . . Allies Corrupted . | . . . . Allies Melted . | . . . . Intel | -11 -10 -9 -9 ------- Run | Yrd Mat Mat Sto Active Infowar (turns) . | . . . . Robot Analysis Total . | . . . . Derelict Logs Recovered . | . . . . Drone Launches . | . . . . Drone Recoveries . | . . . . Exploration | -11 -10 -9 -9 ------------- Run | Yrd Mat Mat Sto Turns Passed 1201 | 71 618 503 9 Spaces Moved 741 | 40 426 269 6 Core 19 | 18 . 1 . Treads 221 | . . 215 6 Legs 457 | 22 426 9 . Wheels . | . . . . Hover 44 | . . 44 . Flight . | . . . . Fastest Speed 50 | 50 120 52 148 Average Speed 125 | 141 121 129 148 Slowest Speed 300 | 200 190 300 148 Overloaded Moves . | . . . . Propulsion Burnouts . | . . . . Robots Hopped . | . . . . Potential Cave-ins . | . . . . Cave-ins Triggered . | . . . . Exploration Rate (%) 26 | 3 78 20 3 Regions Visited 3 Branch Regions 1 Pre-discovered Areas . | . . . . Known Exits Taken . | . . . . Unknown Exits Taken 3 | 1 1 1 . Scrap Searched . | . . . . Spaces Dug . | . . . . Terrain Destroyed 304 | . 113 191 . Melee . | . . . . Projectile . | . . . . AOE 304 | . 113 191 . Terrain Rammed . | . . . . Walls Destroyed . | . . . . Machines Disabled . | . . . . Actions | -11 -10 -9 -9 --------- Run | Yrd Mat Mat Sto Total 927 | 54 498 369 6 Wait 39 | 2 16 21 . Move 738 | 39 425 268 6 Hop . | . . . . Pick Up 36 | 7 18 11 . Fast Attach 3 | . . 3 . Attach 19 | 6 7 6 . Detach . | . . . . Swap 12 | . 4 8 . Drop 15 | . 5 10 . Fire 47 | . 21 26 . Melee 18 | . 2 16 . Ram . | . . . . Kick . | . . . . Crush . | . . . . Escape Stasis . | . . . . Rewire . | . . . . Trap . | . . . . Miscellaneous . | . . . . Route ------- -11/Scrapyard -10/Materials (discovered 3 exits: *Mat x2 / [*Min]) -9/Materials -9/Storage History --------- Turn | Location | Event 15 | -11/Scrapyard | Discovered new exit (range 15) 72 | -11/Scrapyard | Entered Materials 290 | -10/Materials | Discovered new exit (range 13) 384 | -10/Materials | Build established: Mutant 585 | -10/Materials | Discovered new exit (range 9) 642 | -10/Materials | Discovered new exit (range 16) 690 | -10/Materials | Entered another Materials area 690 | -9/Materials | Evolved 2 slots: Propulsion x2 817 | -9/Materials | Destroyed 10 combat bots 1090 | -9/Materials | First assault squad dispatched 1095 | -9/Materials | Discovered new exit (range 9) 1193 | -9/Materials | Entered Storage 1202 | -9/Storage | Self-destructed Last Messages --------------- 01174_ U-05 Engineer lays Concrete. 01175_ K-01 Serf collects debris. 01176_ Hrd. Light Armor Plating destroyed. 01177_ Destroyed Heat Sink. 01177_ K-01 Serf destroyed. 01181_ G-34 Mercenary destroyed. 01183_ The unstable cave ceiling collapses. 01185_ U-05 Engineer builds a Wall. 01186_ The unstable cave ceiling collapses. 01189_ U-05 Engineer lays Concrete. 01190_ U-05 Engineer builds a Wall. 01192_ The unstable cave ceiling collapses. 01192_ Acquired 8 matter. LOCATION=UNKNOWN GOAL=ESCAPE 01202_ Adv. Treads destroyed. 01202_ Critical hit (Burn: +37). 01202_ Adv. Treads destroyed. 01202_ O-16 Technician: "IFF HANDSHAKE FAILED. SECURING TERMINAL." Map ----- +----------------------------------------------------+ | ??????????????????????????????? | | ??????????????????????????????? | | ??????????????????????????????? | | ??????????????????????????????? | | ??????????????????????????????? | | ??????????????????????????????? | | ??????????????????????????????? | | ??????????????????????????????? | | ??????????????????????????????? | | ??????????????????????????????? | | ??????????????????????????????? | | ??????????????????????????????? | | ??????????????????????????????? | | ??????????????????????????????? | | ??????????????????????????????? | | ??????????????????????????????? | | ??????????????????????????????? | | ??????????????????????????????? | | ??????????????????????????????? | | ??????????????????????????????? | | ??????????????????????????????? | | ??????????????????????????????? | | ??????????? ###########+##??? | | ?????????? #??? | | ?????????? Y #??? | | ?????????? @ #??? | | ?????????????????#+##### #??? | | ???????????????????????# #??? | | ???????????????????????# #??? | | ???????????????????????# #??? | | ???????????????????????# #??? | | ???????????????????????# #??? | | ???????????????????????# #??? | | ???????????????????????#####??? | | ??????????????????????????????? | | ??????????????????????????????? | | ??????????????????????????????? | | ??????????????????????????????? | | ??????????????????????????????? | | ??????????????????????????????? | | ??????????????????????????????? | | ??????????????????????????????? | | ??????????????????????????????? | | ??????????????????????????????? | | ??????????????????????????????? | | ??????????????????????????????? | | ??????????????????????????????? | | ??????????????????????????????? | | | | | +----------------------------------------------------+ Best States ------------- Heat Dissipation 50 Energy Generation 12 Energy Capacity 265 Matter Stores 300 Matter Capacity 300 Sight Range 16 Terrain Scan Density 10 Armor Coverage 150 Evasion (%) 55 Recoil Reduction 4 Item Schematics ----------------- None Robot Schematics ------------------ None Fabricated ------------ Nothing Repaired ---------- Nothing Studied --------- None Alien Tech Used ----------------- None Achievements -------------- None Challenges ------------ None Game ------ Seed IntegratedShrapnelWarhead Manual? 0 Play Time 00:14:19 Cumulative 14.2 hours Start 2026.08.25 @ 17:35:46 End 2026.08.25 @ 20:51:09 Sessions 1 Manual Loads 0 Difficulty Rogue Special Mode None Game No. 18 Rogue 18 Adventurer 0 Explorer 0 Win Type - Total 0 Types 0/0/0/0/0/0/0/0/0/0 Lore% 7 Gallery% 13 Achievement% 15 Wizard Run 0 Options --------- Layout 1 ASCII 0 Keyboard 0 Movement Mouse Keybinds 0 Fullscreen 1 Font 24/Terminus Map View 50x35 Zoom Use 0% Tactical HUD 1 Map Filters NONE Filters NONE Steam 1 RUN: a120270c-89bf-4404-a359-24c13dc627b3